[Event "*** Titled Tuesday Blitz"]
[Site "Chess.com"]
[Date "2019.04.02"]
[Round "9"]
[White "Chessmatus"]
[Black "Atanejhad"]
[Result "1-0"]
[WhiteElo "2313"]
[BlackElo "2174"]
[TimeControl "180+2"]
[EndTime "16:04:28 PDT"]
[Termination "Chessmatus won by resignation"]

1. d4 {[%clk 0:03:01.9]} 1... Nf6 {[%clk 0:02:41.5]} 2. c4 {[%clk 0:03:02.7]}
2... e6 {[%clk 0:02:41.2]} 3. g3 {[%clk 0:03:03.3]} 3... c5 {[%clk 0:02:40.4]}
4. d5 {[%clk 0:03:03.6]} 4... exd5 {[%clk 0:02:40.9]} 5. cxd5 {[%clk 0:03:05.5]}
5... d6 {[%clk 0:02:42.1]} 6. Nc3 {[%clk 0:03:06.2]} 6... g6 {[%clk 0:02:43.5]}
7. Bg2 {[%clk 0:03:07.3]} 7... Bg7 {[%clk 0:02:45.2]} 8. Nf3 {[%clk 0:03:08.9]}
8... O-O {[%clk 0:02:46.1]} 9. O-O {[%clk 0:03:10.4]} 9... a6 {[%clk 0:02:45.4]}
10. a4 {[%clk 0:03:10.4]} 10... Bg4 {[%clk 0:02:44.4]} 11. h3 {[%clk 0:03:06]}
11... Bxf3 {[%clk 0:02:44.9]} 12. Bxf3 {[%clk 0:03:07.2]} 12... Nbd7 {[%clk
0:02:44.5]} 13. Bg2 {[%clk 0:03:08.1]} 13... Re8 {[%clk 0:02:39.9]} 14. e4
{[%clk 0:03:05.9]} 14... Rb8 {[%clk 0:02:38.3]} 15. a5 {[%clk 0:03:01.4]} 15...
b5 {[%clk 0:02:38.4]} 16. axb6 {[%clk 0:03:02.2]} 16... Rxb6 {[%clk 0:02:39.4]}
17. Qd3 {[%clk 0:03:00.4]} 17... Qc7 {[%clk 0:02:37.6]} 18. Qe2 {[%clk
0:02:46.3]} 18... c4 {[%clk 0:02:36.3]} 19. Ra4 {[%clk 0:02:43.6]} 19... Ne5
{[%clk 0:02:35.7]} 20. Be3 {[%clk 0:02:34.1]} 20... Rb3 {[%clk 0:02:35.7]} 21.
Rxa6 {[%clk 0:02:28.7]} 21... Nd3 {[%clk 0:02:35.5]} 22. Rc6 {[%clk 0:02:29.2]}
22... Qb7 {[%clk 0:02:26.1]} 23. Rxc4 {[%clk 0:02:24.5]} 23... Nxb2 {[%clk
0:02:26.8]} 24. Rc6 {[%clk 0:02:25.3]} 24... Nd7 {[%clk 0:02:22.5]} 25. Nd1
{[%clk 0:02:10.8]} 25... Ne5 {[%clk 0:02:20]} 26. Rc2 {[%clk 0:02:02.3]} 26...
Ned3 {[%clk 0:02:18.6]} 27. Nxb2 {[%clk 0:02:01.3]} 27... Nxb2 {[%clk
0:02:16.4]} 28. Bf4 {[%clk 0:01:46.9]} 28... f5 {[%clk 0:02:13.2]} 29. Re1
{[%clk 0:01:15.4]} 29... fxe4 {[%clk 0:02:10.1]} 30. Bxe4 {[%clk 0:01:16.7]}
30... Rb4 {[%clk 0:02:06.2]} 31. Qf3 {[%clk 0:01:08.8]} 31... Nc4 {[%clk
0:01:55.8]} 32. Rce2 {[%clk 0:01:05.1]} 32... Ne5 {[%clk 0:01:55.2]} 33. Qa3
{[%clk 0:00:59.2]} 33... Nc4 {[%clk 0:01:39]} 34. Qc1 {[%clk 0:00:46.9]} 34...
Rc8 {[%clk 0:01:32.1]} 35. Bg2 {[%clk 0:00:32.4]} 35... Bb2 {[%clk 0:01:29.4]}
36. Qb1 {[%clk 0:00:18.3]} 36... Be5 {[%clk 0:01:27.9]} 37. Qd3 {[%clk
0:00:15.9]} 37... Bxf4 {[%clk 0:01:27.2]} 38. gxf4 {[%clk 0:00:17]} 38... Qf7
{[%clk 0:01:25.3]} 39. Re7 {[%clk 0:00:13.3]} 39... Qxf4 {[%clk 0:01:23.7]} 40.
Qc3 {[%clk 0:00:14.4]} 40... Ne5 {[%clk 0:01:21.1]} 41. Qxc8+ {[%clk 0:00:12.8]}
1-0

[Event "*** Titled Tuesday Blitz"]
[Site "Chess.com"]
[Date "2019.04.02"]
[Round "9"]
[White "2nd_life"]
[Black "NMZanette"]
[Result "1-0"]
[WhiteElo "2464"]
[BlackElo "2232"]
[TimeControl "180+2"]
[EndTime "16:04:32 PDT"]
[Termination "2nd_life won by checkmate"]

1. e4 {[%clk 0:03:01.9]} 1... e5 {[%clk 0:03:00.1]} 2. f4 {[%clk 0:03:01.6]}
2... exf4 {[%clk 0:03:00.7]} 3. Nf3 {[%clk 0:03:02]} 3... d6 {[%clk 0:03:01.7]}
4. Nc3 {[%clk 0:03:01.5]} 4... g5 {[%clk 0:03:01.3]} 5. g3 {[%clk 0:02:59.7]}
5... fxg3 {[%clk 0:02:59.8]} 6. hxg3 {[%clk 0:03:00]} 6... Bg7 {[%clk
0:02:58.8]} 7. d4 {[%clk 0:02:55.5]} 7... h6 {[%clk 0:02:57.6]} 8. Be3 {[%clk
0:02:52.6]} 8... Bg4 {[%clk 0:02:51.8]} 9. Be2 {[%clk 0:02:47.7]} 9... Nc6
{[%clk 0:02:41]} 10. Qd2 {[%clk 0:02:43.6]} 10... Bd7 {[%clk 0:02:27.3]} 11.
O-O-O {[%clk 0:02:41.2]} 11... Nge7 {[%clk 0:02:14.1]} 12. Nh2 {[%clk
0:02:23.6]} 12... Ng6 {[%clk 0:02:07]} 13. Bh5 {[%clk 0:02:22.4]} 13... Nce7
{[%clk 0:01:55.3]} 14. Rhf1 {[%clk 0:02:18.1]} 14... c6 {[%clk 0:01:26.4]} 15.
Rf2 {[%clk 0:02:04.3]} 15... Qa5 {[%clk 0:01:19.2]} 16. Ng4 {[%clk 0:01:50.5]}
16... Bxg4 {[%clk 0:01:07.3]} 17. Bxg4 {[%clk 0:01:51]} 17... O-O {[%clk
0:01:05.2]} 18. Rdf1 {[%clk 0:01:43.7]} 18... b5 {[%clk 0:00:59.4]} 19. Kb1
{[%clk 0:01:41.9]} 19... b4 {[%clk 0:01:00.5]} 20. Ne2 {[%clk 0:01:36.5]} 20...
Rab8 {[%clk 0:01:01.8]} 21. Bf5 {[%clk 0:01:16.2]} 21... Rb6 {[%clk 0:00:54.1]}
22. Rh2 {[%clk 0:01:07.9]} 22... Ra6 {[%clk 0:00:35.6]} 23. Nc1 {[%clk
0:01:08.2]} 23... c5 {[%clk 0:00:20.9]} 24. Bxg5 {[%clk 0:00:19.7]} 24... hxg5
{[%clk 0:00:21.9]} 25. Qxg5 {[%clk 0:00:21.6]} 25... c4 {[%clk 0:00:21.3]} 26.
Qh5 {[%clk 0:00:16.5]} 26... Rb8 {[%clk 0:00:20.8]} 27. Bxg6 {[%clk 0:00:13.3]}
27... Nxg6 {[%clk 0:00:21.5]} 28. Qh7+ {[%clk 0:00:12.5]} 28... Kf8 {[%clk
0:00:22.4]} 29. Qxg6 {[%clk 0:00:13.7]} 29... Qc7 {[%clk 0:00:21.3]} 30. Rh7
{[%clk 0:00:13.3]} 30... f6 {[%clk 0:00:19.8]} 31. Rxf6+ {[%clk 0:00:10.9]}
31... Kg8 {[%clk 0:00:21.2]} 32. Rf5 {[%clk 0:00:05.1]} 32... b3 {[%clk
0:00:21.9]} 33. Rfh5 {[%clk 0:00:04.9]} 33... bxa2+ {[%clk 0:00:23]} 34. Ka1
{[%clk 0:00:06.1]} 34... Kf8 {[%clk 0:00:21.9]} 35. Rh8+ {[%clk 0:00:07.4]}
35... Ke7 {[%clk 0:00:23.5]} 36. Qxg7+ {[%clk 0:00:08.6]} 36... Ke6 {[%clk
0:00:25.1]} 37. R5h6# {[%clk 0:00:09.3]} 1-0

[Event "*** Titled Tuesday Blitz"]
[Site "Chess.com"]
[Date "2019.04.02"]
[Round "9"]
[White "Panchenko_Dmitry"]
[Black "Manukyan_Artak"]
[Result "1-0"]
[WhiteElo "2537"]
[BlackElo "2449"]
[TimeControl "180+2"]
[EndTime "16:04:35 PDT"]
[Termination "Panchenko_Dmitry won by resignation"]

1. e4 {[%clk 0:03:01.9]} 1... c6 {[%clk 0:03:01]} 2. d4 {[%clk 0:03:02.4]} 2...
d5 {[%clk 0:03:02.9]} 3. exd5 {[%clk 0:03:04.3]} 3... cxd5 {[%clk 0:03:03.9]} 4.
Bd3 {[%clk 0:03:05.8]} 4... Nf6 {[%clk 0:03:03.9]} 5. h3 {[%clk 0:03:06.6]} 5...
g6 {[%clk 0:03:03.4]} 6. Ne2 {[%clk 0:03:03.5]} 6... Bg7 {[%clk 0:03:04.4]} 7.
c3 {[%clk 0:03:03.8]} 7... O-O {[%clk 0:03:05.4]} 8. Bf4 {[%clk 0:03:04.7]} 8...
Ne4 {[%clk 0:03:04.1]} 9. Nd2 {[%clk 0:03:03.8]} 9... Bf5 {[%clk 0:03:04]} 10.
Nf3 {[%clk 0:02:53.1]} 10... Nc6 {[%clk 0:02:57.3]} 11. O-O {[%clk 0:02:53.5]}
11... Re8 {[%clk 0:02:53.7]} 12. Ng3 {[%clk 0:02:53.6]} 12... Nxg3 {[%clk
0:02:53.8]} 13. Bxg3 {[%clk 0:02:54.2]} 13... Bxd3 {[%clk 0:02:53.8]} 14. Qxd3
{[%clk 0:02:56.1]} 14... Qb6 {[%clk 0:02:52.4]} 15. Rab1 {[%clk 0:02:55.3]}
15... a5 {[%clk 0:02:52.1]} 16. Rfe1 {[%clk 0:02:54.9]} 16... Qa6 {[%clk
0:02:48.9]} 17. Qe3 {[%clk 0:02:51]} 17... a4 {[%clk 0:02:42.9]} 18. Ne5 {[%clk
0:02:47]} 18... Nxe5 {[%clk 0:02:42.3]} 19. Bxe5 {[%clk 0:02:48]} 19... Rad8
{[%clk 0:02:24.5]} 20. Bxg7 {[%clk 0:02:45.1]} 20... Kxg7 {[%clk 0:02:25.3]} 21.
Qe5+ {[%clk 0:02:46.3]} 21... Qf6 {[%clk 0:02:26]} 22. Qc7 {[%clk 0:02:46]}
22... b6 {[%clk 0:02:13.2]} 23. a3 {[%clk 0:02:36.9]} 23... Qd6 {[%clk
0:02:09.2]} 24. Qxd6 {[%clk 0:02:17.7]} 24... Rxd6 {[%clk 0:02:09.5]} 25. f4
{[%clk 0:02:10.6]} 25... f6 {[%clk 0:02:01.2]} 26. Kf2 {[%clk 0:02:10.6]} 26...
Kf7 {[%clk 0:02:00.4]} 27. Re3 {[%clk 0:02:10.6]} 27... Re6 {[%clk 0:02:01.3]}
28. Rbe1 {[%clk 0:02:09.8]} 28... Rxe3 {[%clk 0:02:01.8]} 29. Rxe3 {[%clk
0:02:11.3]} 29... e6 {[%clk 0:02:00.8]} 30. g4 {[%clk 0:02:11.5]} 30... Ra8
{[%clk 0:01:58.4]} 31. Kf3 {[%clk 0:02:08]} 31... Ra5 {[%clk 0:01:59.2]} 32. f5
{[%clk 0:02:05.5]} 32... exf5 {[%clk 0:01:56.7]} 33. gxf5 {[%clk 0:02:06.4]}
33... Ra7 {[%clk 0:01:44.8]} 34. Re6 {[%clk 0:02:04.2]} 34... gxf5 {[%clk
0:01:27.1]} 35. Rxb6 {[%clk 0:02:04]} 35... Kg6 {[%clk 0:01:27.7]} 36. Rb5
{[%clk 0:01:42.2]} 36... Kg5 {[%clk 0:01:14.7]} 37. h4+ {[%clk 0:01:28.5]} 37...
Kg6 {[%clk 0:01:12.7]} 38. Kf4 {[%clk 0:01:28.3]} 38... h5 {[%clk 0:01:02.4]}
39. Rxd5 {[%clk 0:01:10.9]} 39... Rb7 {[%clk 0:01:02.6]} 40. Ra5 {[%clk
0:01:12]} 40... Rxb2 {[%clk 0:01:03.1]} 41. Rxa4 {[%clk 0:01:12.6]} 41... Rb3
{[%clk 0:01:04]} 42. Rc4 {[%clk 0:01:12.6]} 42... Rxa3 {[%clk 0:01:04.8]} 43. d5
{[%clk 0:01:13.5]} 43... Ra1 {[%clk 0:01:02.6]} 44. d6 {[%clk 0:01:11.3]} 44...
Rf1+ {[%clk 0:01:02.2]} 45. Ke3 {[%clk 0:01:07.5]} 45... Rd1 {[%clk 0:01:01.6]}
46. Rd4 {[%clk 0:01:07.9]} 46... Re1+ {[%clk 0:00:41.6]} 47. Kf4 {[%clk
0:01:08.3]} 47... Rf1+ {[%clk 0:00:36.9]} 48. Kg3 {[%clk 0:01:06.7]} 48... f4+
{[%clk 0:00:28.8]} 49. Kg2 {[%clk 0:01:07.1]} 1-0

[Event "*** Titled Tuesday Blitz"]
[Site "Chess.com"]
[Date "2019.04.02"]
[Round "9"]
[White "fidezivkovic"]
[Black "chessking2151"]
[Result "0-1"]
[WhiteElo "2338"]
[BlackElo "2575"]
[TimeControl "180+2"]
[EndTime "16:04:36 PDT"]
[Termination "chessking2151 won by checkmate"]

1. e4 {[%clk 0:03:01.9]} 1... e5 {[%clk 0:02:57.3]} 2. Nf3 {[%clk 0:03:02.1]}
2... Nc6 {[%clk 0:02:58.6]} 3. d4 {[%clk 0:03:02.1]} 3... exd4 {[%clk
0:02:59.7]} 4. Bc4 {[%clk 0:03:02.5]} 4... Nf6 {[%clk 0:03:00.5]} 5. e5 {[%clk
0:03:03]} 5... d5 {[%clk 0:03:01.7]} 6. Bb5 {[%clk 0:03:02.9]} 6... Ne4 {[%clk
0:03:03.3]} 7. Nxd4 {[%clk 0:03:03.2]} 7... Bd7 {[%clk 0:03:04.8]} 8. Bxc6
{[%clk 0:03:02.6]} 8... bxc6 {[%clk 0:03:05.6]} 9. O-O {[%clk 0:03:03.7]} 9...
Bc5 {[%clk 0:02:51.7]} 10. Be3 {[%clk 0:03:03.4]} 10... Qe7 {[%clk 0:02:14.6]}
11. f3 {[%clk 0:03:00.2]} 11... Nd6 {[%clk 0:02:15]} 12. f4 {[%clk 0:02:46.6]}
12... O-O {[%clk 0:02:10]} 13. Nd2 {[%clk 0:02:40.6]} 13... f6 {[%clk
0:02:04.3]} 14. N2b3 {[%clk 0:02:36.1]} 14... Nc4 {[%clk 0:01:54.3]} 15. Nxc5
{[%clk 0:02:28.3]} 15... Nxe3 {[%clk 0:01:50.2]} 16. Qe2 {[%clk 0:02:16.2]}
16... Nxf1 {[%clk 0:01:49.9]} 17. Nxd7 {[%clk 0:02:15.8]} 17... Qxd7 {[%clk
0:01:49.3]} 18. e6 {[%clk 0:02:15.9]} 18... Qd6 {[%clk 0:01:50.2]} 19. Rxf1
{[%clk 0:02:13.3]} 19... f5 {[%clk 0:01:23.5]} 20. e7 {[%clk 0:01:48.1]} 20...
Rfe8 {[%clk 0:01:22.8]} 21. Nxf5 {[%clk 0:01:47.9]} 21... Qf6 {[%clk 0:01:22.9]}
22. Qd3 {[%clk 0:01:36.9]} 22... Kh8 {[%clk 0:01:10.3]} 23. Re1 {[%clk
0:00:56.2]} 23... Rab8 {[%clk 0:00:57.7]} 24. b3 {[%clk 0:00:47.8]} 24... Qg6
{[%clk 0:00:12.4]} 25. Re5 {[%clk 0:00:43.6]} 25... Qf6 {[%clk 0:00:12]} 26. g4
{[%clk 0:00:36.1]} 26... g6 {[%clk 0:00:06.9]} 27. g5 {[%clk 0:00:28]} 27... Qf7
{[%clk 0:00:07.9]} 28. Qd4 {[%clk 0:00:18]} 28... gxf5 {[%clk 0:00:08.8]} 29.
Rxf5+ {[%clk 0:00:17.9]} 29... Qg7 {[%clk 0:00:10.2]} 30. Re5 {[%clk 0:00:16.1]}
30... Rxe7 {[%clk 0:00:10.5]} 31. Qxa7 {[%clk 0:00:15.8]} 31... Rbe8 {[%clk
0:00:10.8]} 32. Rxe7 {[%clk 0:00:10.6]} 32... Qxe7 {[%clk 0:00:12.3]} 33. Qd4+
{[%clk 0:00:10.1]} 33... Kg8 {[%clk 0:00:13.7]} 34. Kf2 {[%clk 0:00:10.4]} 34...
Qe2+ {[%clk 0:00:14.6]} 35. Kg3 {[%clk 0:00:10.9]} 35... Re3+ {[%clk 0:00:15.8]}
36. Kh4 {[%clk 0:00:10.8]} 36... Qxh2+ {[%clk 0:00:16.9]} 37. Kg4 {[%clk
0:00:11.2]} 37... Qh3# {[%clk 0:00:18.4]} 0-1

[Event "*** Titled Tuesday Blitz"]
[Site "Chess.com"]
[Date "2019.04.02"]
[Round "9"]
[White "nabukatnezarr"]
[Black "MikaelyanArman"]
[Result "0-1"]
[WhiteElo "2584"]
[BlackElo "2749"]
[TimeControl "180+2"]
[EndTime "16:04:39 PDT"]
[Termination "MikaelyanArman won by resignation"]

1. e4 {[%clk 0:03:01.9]} 1... g6 {[%clk 0:02:58.5]} 2. d4 {[%clk 0:03:02.3]}
2... Bg7 {[%clk 0:02:59.9]} 3. Nf3 {[%clk 0:03:03.8]} 3... d6 {[%clk 0:03:00.4]}
4. Bc4 {[%clk 0:03:05.3]} 4... c6 {[%clk 0:02:58]} 5. Bb3 {[%clk 0:03:01.3]}
5... Nf6 {[%clk 0:02:53.8]} 6. Qe2 {[%clk 0:03:01.7]} 6... O-O {[%clk
0:02:52.1]} 7. e5 {[%clk 0:03:02.5]} 7... dxe5 {[%clk 0:02:52.8]} 8. dxe5 {[%clk
0:03:04.4]} 8... Nd5 {[%clk 0:02:54]} 9. h3 {[%clk 0:03:06]} 9... Na6 {[%clk
0:02:53.5]} 10. a3 {[%clk 0:02:43.9]} 10... Nc5 {[%clk 0:02:53]} 11. Ba2 {[%clk
0:02:45.4]} 11... a5 {[%clk 0:02:31.9]} 12. O-O {[%clk 0:02:44.8]} 12... a4
{[%clk 0:02:29.6]} 13. Bg5 {[%clk 0:02:38.6]} 13... Qc7 {[%clk 0:02:25.4]} 14.
Nbd2 {[%clk 0:02:36]} 14... Bf5 {[%clk 0:02:24.9]} 15. Rac1 {[%clk 0:02:34.4]}
15... h6 {[%clk 0:02:24.3]} 16. Bh4 {[%clk 0:02:27.1]} 16... e6 {[%clk
0:02:14.6]} 17. Bg3 {[%clk 0:02:23.2]} 17... g5 {[%clk 0:02:11.1]} 18. Nc4
{[%clk 0:02:14.8]} 18... Ne4 {[%clk 0:02:02.2]} 19. Bh2 {[%clk 0:02:12.8]} 19...
b5 {[%clk 0:02:00.9]} 20. Nd6 {[%clk 0:02:13.3]} 20... Nxd6 {[%clk 0:02:01.9]}
21. exd6 {[%clk 0:02:14.5]} 21... Qb6 {[%clk 0:02:03.2]} 22. c3 {[%clk
0:02:09.6]} 22... Rad8 {[%clk 0:02:03.5]} 23. Rfd1 {[%clk 0:01:59.8]} 23... Rfe8
{[%clk 0:02:03.2]} 24. g4 {[%clk 0:01:56.5]} 24... Bg6 {[%clk 0:02:02.4]} 25.
Ne5 {[%clk 0:01:56.5]} 25... Bh7 {[%clk 0:01:38]} 26. c4 {[%clk 0:01:57.4]}
26... bxc4 {[%clk 0:01:37.5]} 27. Nxc4 {[%clk 0:01:58.4]} 27... Qa6 {[%clk
0:01:35.9]} 28. Be5 {[%clk 0:01:57.6]} 28... Nf4 {[%clk 0:01:29.2]} 29. Qe3
{[%clk 0:01:39.2]} 29... Bxe5 {[%clk 0:01:14.7]} 30. Nxe5 {[%clk 0:01:34.4]}
30... Ne2+ {[%clk 0:01:12.7]} 31. Kh2 {[%clk 0:01:13.7]} 31... Nxc1 {[%clk
0:01:13.6]} 32. d7 {[%clk 0:01:06.3]} 32... Re7 {[%clk 0:01:09.3]} 33. Rxc1
{[%clk 0:01:04.5]} 33... Rexd7 {[%clk 0:01:03.8]} 34. Rxc6 {[%clk 0:00:55.1]}
34... Qb7 {[%clk 0:00:56]} 35. Rxe6 {[%clk 0:00:30.6]} 35... fxe6 {[%clk
0:00:40.1]} 36. Bxe6+ {[%clk 0:00:31.8]} 36... Kh8 {[%clk 0:00:41.5]} 37. Qc3
{[%clk 0:00:20.6]} 37... Rd4 {[%clk 0:00:42.2]} 38. Nf7+ {[%clk 0:00:17.4]}
38... Kg7 {[%clk 0:00:43.4]} 39. Nxd8 {[%clk 0:00:18.7]} 39... Qb8+ {[%clk
0:00:44.5]} 40. f4 {[%clk 0:00:15.6]} 0-1

[Event "*** Titled Tuesday Blitz"]
[Site "Chess.com"]
[Date "2019.04.02"]
[Round "9"]
[White "scaryninja"]
[Black "wannabe2700"]
[Result "1/2-1/2"]
[WhiteElo "2480"]
[BlackElo "2590"]
[TimeControl "180+2"]
[EndTime "16:04:42 PDT"]
[Termination "Game drawn by agreement"]

1. e4 {[%clk 0:03:01.9]} 1... e5 {[%clk 0:02:58.4]} 2. Nf3 {[%clk 0:03:02.3]}
2... Nf6 {[%clk 0:02:58.4]} 3. Nxe5 {[%clk 0:03:02.6]} 3... d6 {[%clk
0:02:59.7]} 4. Nf3 {[%clk 0:03:03.2]} 4... Nxe4 {[%clk 0:03:00.8]} 5. Nc3 {[%clk
0:03:02.8]} 5... Nxc3 {[%clk 0:03:01.1]} 6. dxc3 {[%clk 0:03:03.3]} 6... Be7
{[%clk 0:03:03]} 7. Be3 {[%clk 0:03:04.2]} 7... O-O {[%clk 0:03:04.7]} 8. Qd2
{[%clk 0:03:04.8]} 8... Nd7 {[%clk 0:03:06.4]} 9. O-O-O {[%clk 0:03:05.4]} 9...
Ne5 {[%clk 0:03:08.2]} 10. Be2 {[%clk 0:02:46.1]} 10... Ng4 {[%clk 0:02:58]} 11.
Kb1 {[%clk 0:02:39.8]} 11... Bd7 {[%clk 0:02:44.3]} 12. h3 {[%clk 0:02:25.7]}
12... Nxe3 {[%clk 0:02:44.5]} 13. Qxe3 {[%clk 0:02:27.6]} 13... Re8 {[%clk
0:02:43.6]} 14. Qd2 {[%clk 0:02:27.9]} 14... Bf6 {[%clk 0:02:30.9]} 15. Bd3
{[%clk 0:02:24.1]} 15... Bc6 {[%clk 0:02:30.7]} 16. Rhe1 {[%clk 0:02:16.2]}
16... Bxf3 {[%clk 0:02:28.2]} 17. gxf3 {[%clk 0:02:16.3]} 17... c6 {[%clk
0:02:22.5]} 18. Qf4 {[%clk 0:02:08.6]} 18... d5 {[%clk 0:02:17.3]} 19. Qf5
{[%clk 0:01:52.6]} 19... Rxe1 {[%clk 0:02:15.8]} 20. Qxh7+ {[%clk 0:01:53.6]}
20... Kf8 {[%clk 0:02:16.5]} 21. Rxe1 {[%clk 0:01:30.9]} 21... g6 {[%clk
0:02:17.2]} 22. h4 {[%clk 0:01:23]} 22... Bg7 {[%clk 0:01:34.1]} 23. h5 {[%clk
0:01:13.3]} 23... Qh4 {[%clk 0:01:34.5]} 24. hxg6 {[%clk 0:00:56.9]} 24... Qxf2
{[%clk 0:01:35.5]} 25. Rf1 {[%clk 0:00:43.9]} 25... Re8 {[%clk 0:01:36.1]} 26.
a3 {[%clk 0:00:40.9]} 26... Re1+ {[%clk 0:01:36.4]} 27. Rxe1 {[%clk 0:00:36.9]}
27... Qxe1+ {[%clk 0:01:38.3]} 28. Ka2 {[%clk 0:00:38.3]} 28... Qe6 {[%clk
0:01:34.3]} 29. f4 {[%clk 0:00:34.4]} 29... d4+ {[%clk 0:01:33.5]} 30. c4 {[%clk
0:00:35.4]} 30... fxg6 {[%clk 0:01:25.2]} 31. Qxg6 {[%clk 0:00:32.8]} 31... Qxg6
{[%clk 0:01:25.9]} 32. Bxg6 {[%clk 0:00:34.7]} 32... c5 {[%clk 0:01:23.3]} 33.
Be4 {[%clk 0:00:35.4]} 33... b6 {[%clk 0:01:22.9]} 34. Kb3 {[%clk 0:00:36.8]}
34... Ke7 {[%clk 0:01:20.5]} 35. Ka4 {[%clk 0:00:37.2]} 35... Kd6 {[%clk
0:01:21.7]} 36. Kb5 {[%clk 0:00:37.6]} 36... Kc7 {[%clk 0:01:22.9]} 37. b3
{[%clk 0:00:36.9]} 37... a5 {[%clk 0:01:16.7]} 38. a4 {[%clk 0:00:32.7]} 38...
Bf6 {[%clk 0:00:54.6]} 39. Bd5 {[%clk 0:00:25.5]} 39... Bg7 {[%clk 0:00:55]} 40.
f5 {[%clk 0:00:20]} 40... Bf6 {[%clk 0:00:53.7]} 41. Be4 {[%clk 0:00:21.4]}
41... Bg7 {[%clk 0:00:54.9]} 42. b4 {[%clk 0:00:20.9]} 42... axb4 {[%clk
0:00:51.1]} 43. a5 {[%clk 0:00:19.7]} 43... bxa5 {[%clk 0:00:53]} 44. Kxa5
{[%clk 0:00:18.7]} 44... Kd6 {[%clk 0:00:48.7]} 45. Kb5 {[%clk 0:00:19.6]} 45...
Bf6 {[%clk 0:00:49.7]} 46. Bd3 {[%clk 0:00:18.8]} 46... Bd8 {[%clk 0:00:48.9]}
47. Ka6 {[%clk 0:00:19.4]} 47... Bg5 {[%clk 0:00:45.5]} 1/2-1/2

[Event "*** Titled Tuesday Blitz"]
[Site "Chess.com"]
[Date "2019.04.02"]
[Round "9"]
[White "Hikaru"]
[Black "Amirreza_p"]
[Result "0-1"]
[WhiteElo "3148"]
[BlackElo "2787"]
[TimeControl "180+2"]
[EndTime "16:04:43 PDT"]
[Termination "Amirreza_p won by checkmate"]

1. e4 {[%clk 0:03:01.9]} 1... e6 {[%clk 0:03:01.2]} 2. d4 {[%clk 0:03:01.3]}
2... d5 {[%clk 0:03:03.1]} 3. Nd2 {[%clk 0:03:02.7]} 3... c5 {[%clk 0:03:02.4]}
4. exd5 {[%clk 0:03:02.6]} 4... Qxd5 {[%clk 0:03:02.7]} 5. Ngf3 {[%clk
0:03:04.1]} 5... cxd4 {[%clk 0:03:02.3]} 6. Bc4 {[%clk 0:03:05.3]} 6... Qd7
{[%clk 0:03:03.8]} 7. O-O {[%clk 0:03:03.8]} 7... Nc6 {[%clk 0:03:04.5]} 8. Nb3
{[%clk 0:03:05]} 8... a6 {[%clk 0:03:03.7]} 9. Qe2 {[%clk 0:03:05.7]} 9... Bd6
{[%clk 0:03:01.7]} 10. Nbxd4 {[%clk 0:03:03.6]} 10... Nxd4 {[%clk 0:03:01.2]}
11. Nxd4 {[%clk 0:03:04.3]} 11... Qc7 {[%clk 0:03:02.8]} 12. h3 {[%clk
0:02:48.2]} 12... Ne7 {[%clk 0:03:02.9]} 13. Bg5 {[%clk 0:02:46.6]} 13... O-O
{[%clk 0:03:02.1]} 14. Rad1 {[%clk 0:02:46.8]} 14... Ng6 {[%clk 0:03:01.5]} 15.
Rfe1 {[%clk 0:02:38.5]} 15... b5 {[%clk 0:02:55.2]} 16. Bb3 {[%clk 0:02:34.8]}
16... Bb7 {[%clk 0:02:44.8]} 17. Nxe6 {[%clk 0:02:06.9]} 17... Bh2+ {[%clk
0:02:43.5]} 18. Kh1 {[%clk 0:02:07.9]} 18... fxe6 {[%clk 0:02:43.6]} 19. Rd7
{[%clk 0:02:07.6]} 19... Qc6 {[%clk 0:01:24.9]} 20. Qxe6+ {[%clk 0:02:07.3]}
20... Kh8 {[%clk 0:01:23.5]} 21. Rxb7 {[%clk 0:02:08.1]} 21... Qxb7 {[%clk
0:01:23.6]} 22. Bd5 {[%clk 0:02:09.2]} 22... Qa7 {[%clk 0:00:57.7]} 23. Bxa8
{[%clk 0:02:09.2]} 23... Qxf2 {[%clk 0:00:53.6]} 24. Kxh2 {[%clk 0:01:56.1]}
24... Rxa8 {[%clk 0:00:52.8]} 25. Re2 {[%clk 0:01:53.8]} 25... Qf8 {[%clk
0:00:51.1]} 26. Rd2 {[%clk 0:01:45.8]} 26... Re8 {[%clk 0:00:47.2]} 27. Qxa6
{[%clk 0:01:42.6]} 27... Qf5 {[%clk 0:00:47.1]} 28. Qc6 {[%clk 0:01:27.2]} 28...
Qe5+ {[%clk 0:00:47.8]} 29. g3 {[%clk 0:01:22.2]} 29... Rf8 {[%clk 0:00:48.6]}
30. h4 {[%clk 0:01:19.2]} 30... Qxb2 {[%clk 0:00:43.1]} 31. c4 {[%clk
0:00:57.3]} 31... Qb1 {[%clk 0:00:32.4]} 32. Qxb5 {[%clk 0:00:49.5]} 32... Qe1
{[%clk 0:00:33.3]} 33. Qb6 {[%clk 0:00:34.8]} 33... Ne5 {[%clk 0:00:28]} 34. Rd8
{[%clk 0:00:12.7]} 34... Nf3+ {[%clk 0:00:17.5]} 35. Kg2 {[%clk 0:00:12.6]}
35... Qe2+ {[%clk 0:00:18.4]} 36. Kh3 {[%clk 0:00:09.8]} 36... Qf1+ {[%clk
0:00:19.7]} 37. Kg4 {[%clk 0:00:09.7]} 37... Ne5+ {[%clk 0:00:21.2]} 38. Kh5
{[%clk 0:00:11.6]} 38... Qf3+ {[%clk 0:00:21.9]} 39. g4 {[%clk 0:00:12.1]} 39...
Qxg4# {[%clk 0:00:23.4]} 0-1